bitfinex-derivatives/quotes_BNBF0:USTF0_20250617
["timestamp","ask_amount","ask_price","bid_price","bid_amount"]
[1750154585114,0.26496823,656.9,656.2,2.26684034]
[1750154585318,0.99748676,656.89,656.19,2.26684034]
[1750154585619,0.26496823,656.9,656.19,2.26684034]
[1750154585920,0.9973984,656.89,656.2,2.26684034]
[1750154586114,0.99740054,656.88,656.16,2.26684034]
[1750154586316,0.26496823,656.9,656.16,2.26684034]
[1750154586520,0.99735471,656.89,656.04,0.30485945]
[1750154586721,0.99735471,656.88,656.04,0.30485945]
[1750154586918,0.99735471,656.87,656.04,0.30485945]
[1750154587216,0.99735471,656.86,656.04,0.30485945]
[1750154587417,0.26496823,656.9,656.04,0.30485945]
[1750154587418,0.99735471,656.85,656.04,0.30485945]
[1750154587621,0.26496823,656.9,656.04,0.30485945]
[1750154587622,0.99735471,656.84,656.04,0.30485945]
[1750154587921,0.99735471,656.83,656.04,0.30485945]
[1750154588121,0.99735471,656.82,656.04,0.30485945]
[1750154588323,0.99735471,656.81,656.04,0.30485945]
[1750154588621,0.99735471,656.8,656.04,0.30485945]
[1750154588822,0.99735471,656.79,656.04,0.30485945]
[1750154589121,0.99735471,656.78,656.04,0.30485945]
[1750154589318,0.99735471,656.77,656.04,0.30485945]
[1750154589621,0.99735471,656.76,656.08,2.26684034]
[1750154589822,0.99735471,656.75,656.1,2.26684034]
[1750154590018,0.99735471,656.74,656.1,2.26684034]
[1750154590222,0.99735471,656.74,656.04,0.30485945]
[1750154590223,0.99735471,656.73,656.04,0.30485945]
[1750154590418,0.99735471,656.72,656.04,0.30485945]
[1750154590719,0.26496823,656.9,656.04,0.30485945]
[1750154590922,0.99583125,656.89,656.04,0.30485945]
[1750154591125,0.99583125,656.88,656.04,0.30485945]
[1750154591320,0.99583125,656.87,656.04,0.30485945]
[1750154591525,0.99583125,656.86,656.04,0.30485945]
[1750154591824,0.26496823,656.9,656.04,0.30485945]
[1750154591825,0.99583125,656.85,656.04,0.30485945]
[1750154592025,0.99583125,656.84,656.04,0.30485945]
[1750154592226,0.99583125,656.83,656.04,0.30485945]
[1750154592421,0.99583125,656.82,656.04,0.30485945]
[1750154592725,0.99583125,656.81,656.04,0.30485945]
[1750154592927,0.99583125,656.8,656.04,0.30485945]
[1750154593126,0.99583125,656.79,656.04,0.30485945]
[1750154593327,0.99583125,656.78,656.04,0.30485945]
[1750154593623,0.99583125,656.77,656.04,0.30485945]
[1750154593928,0.99583125,656.76,656.04,0.30485945]
[1750154594126,0.99583125,656.75,656.04,0.30485945]
[1750154594328,0.99583125,656.74,656.04,0.30485945]
[1750154594523,0.99583125,656.73,656.04,0.30485945]
[1750154594728,0.99583125,656.72,656.04,0.30485945]
[1750154594930,0.26496823,656.9,656.04,0.30485945]
[1750154595223,0.99505218,656.89,656.04,0.30485945]
[1750154595428,0.99505218,656.88,656.04,0.30485945]
[1750154595627,0.99505218,656.87,656.04,0.30485945]
[1750154595825,0.99505218,656.86,656.04,0.30485945]
[1750154596025,0.99505218,656.85,656.04,0.30485945]
[1750154596229,0.99505218,656.84,656.04,0.30485945]
[1750154596429,0.99505218,656.83,656.04,0.30485945]
[1750154596732,0.99505218,656.82,656.04,0.30485945]
[1750154597030,0.26496823,656.9,656.04,0.30485945]
[1750154597031,0.99505218,656.81,656.04,0.30485945]
[1750154597230,0.99505218,656.8,656.04,0.30485945]
[1750154597431,0.99505218,656.79,656.04,0.30485945]
[1750154597626,0.99505218,656.78,656.04,0.30485945]
[1750154597833,0.99505218,656.77,656.04,0.30485945]
[1750154598032,0.99467976,656.76,656.04,0.30485945]
[1750154598332,0.99467976,656.75,656.04,0.30485945]
[1750154598531,0.99467976,656.74,656.04,0.30485945]
[1750154598734,0.26496823,656.9,656.04,0.30485945]
[1750154599031,0.99527568,656.89,656.04,0.30485945]
[1750154599234,0.99527568,656.88,656.04,0.30485945]
[1750154599429,0.99527568,656.87,656.04,0.30485945]
[1750154599629,0.99527568,656.86,656.04,0.30485945]
[1750154599832,0.99527568,656.85,656.04,0.30485945]
[1750154600128,0.99527568,656.84,656.04,0.30485945]
[1750154600330,0.99527568,656.83,656.04,0.30485945]
[1750154600530,0.99527568,656.82,656.04,0.30485945]
[1750154600729,0.99527568,656.81,656.04,0.30485945]
[1750154600932,0.99527568,656.8,656.04,0.30485945]
[1750154601134,0.99527568,656.79,656.04,0.30485945]
[1750154601435,0.99527568,656.78,656.04,0.30485945]
[1750154601633,0.99527568,656.77,656.04,0.30485945]
[1750154601833,0.99527568,656.76,656.04,0.30485945]
[1750154602133,0.99527568,656.75,656.04,0.30485945]
[1750154602332,0.99527568,656.74,656.04,0.30485945]
[1750154602530,0.26496823,656.9,655.84,0.26509438]
[1750154602531,0.99527568,656.73,655.84,0.26509438]
[1750154602732,0.99527568,656.72,655.84,0.26509438]
[1750154602928,0.99527568,656.71,655.84,0.26509438]
[1750154603129,0.99527568,656.7,655.84,0.26509438]
[1750154603329,0.99527568,656.69,655.84,0.26509438]
[1750154603531,0.99527568,656.68,655.84,0.26509438]
[1750154603733,0.99527568,656.67,655.84,0.26509438]
[1750154604029,0.99527568,656.66,655.84,0.26509438]
[1750154604233,0.99527568,656.65,655.84,0.26509438]
[1750154604535,0.99527568,656.64,655.84,0.26509438]
[1750154604736,0.99527568,656.63,655.84,0.26509438]
[1750154604932,0.99527568,656.62,655.84,0.26509438]
[1750154605134,0.99527568,656.61,655.84,0.26509438]
[1750154605337,0.99527568,656.6,655.84,0.26509438]
[1750154605533,0.26496823,656.9,655.84,0.26509438]
[1750154605734,0.99371334,656.89,655.84,0.26509438]
[1750154605935,0.99371334,656.88,655.84,0.26509438]
[1750154606237,0.99371334,656.87,655.84,0.26509438]
[1750154606440,0.99371334,656.86,655.84,0.26509438]
[1750154606736,0.99371334,656.85,655.84,0.26509438]
[1750154607038,0.26496823,656.9,655.84,0.26509438]
[1750154607039,0.99371334,656.84,655.84,0.26509438]
[1750154607339,0.99371334,656.83,655.84,0.26509438]
[1750154607539,0.99371334,656.82,655.84,0.26509438]
[1750154607834,0.99371334,656.81,655.84,0.26509438]
[1750154608040,0.99371334,656.8,655.84,0.26509438]
[1750154608233,0.99371334,656.79,655.84,0.26509438]
[1750154608438,0.99371334,656.78,655.84,0.26509438]
[1750154608633,0.99371334,656.77,655.84,0.26509438]
[1750154608838,0.99371334,656.76,655.84,0.26509438]
[1750154609039,0.99371334,656.75,655.84,0.26509438]
[1750154609239,0.99371334,656.74,655.84,0.26509438]
[1750154609436,0.99371334,656.73,655.84,0.26509438]
[1750154609634,0.99371334,656.72,655.84,0.26509438]
[1750154609839,0.99371334,656.71,655.84,0.26509438]
[1750154610139,0.99371334,656.7,655.84,0.26509438]
[1750154610334,0.99371334,656.69,655.84,0.26509438]
[1750154610538,0.99371334,656.68,655.84,0.26509438]
[1750154610739,0.99371334,656.67,655.84,0.26509438]
[1750154610941,0.99371334,656.66,655.84,0.26509438]
[1750154611237,0.99371334,656.65,655.84,0.26509438]
[1750154611440,0.99371334,656.64,655.84,0.26509438]
[1750154611642,0.99371334,656.63,655.84,0.26509438]
[1750154611841,0.99371334,656.62,655.84,0.26509438]
[1750154612038,0.99371334,656.61,655.84,0.26509438]
[1750154612239,0.99371334,656.6,655.84,0.26509438]
[1750154612438,0.99371334,656.59,655.84,0.26509438]
[1750154612642,0.99371334,656.58,655.84,0.26509438]
[1750154612842,0.99371334,656.57,655.84,0.26509438]
[1750154613045,0.99371334,656.56,655.84,0.26509438]
[1750154613239,0.99673714,656.78,655.84,0.26509438]
[1750154613443,0.99201527,656.77,655.84,0.26509438]
[1750154613743,0.99201527,656.76,655.84,0.26509438]
[1750154614040,0.99201527,656.75,655.84,0.26509438]
[1750154614244,0.99201527,656.74,655.84,0.26509438]
[1750154614440,0.99201527,656.73,655.84,0.26509438]
[1750154614647,0.99201527,656.72,655.84,0.26509438]
[1750154614942,0.99201527,656.71,655.84,0.26509438]
[1750154615141,2.84555086,656.86,655.84,0.26509438]
[1750154615142,0.99201527,656.7,655.84,0.26509438]
[1750154615340,0.99201527,656.69,655.43,2.26684034]
[1750154615542,0.99201527,656.68,655.7,0.26519842]
[1750154615741,0.99201527,656.67,655.7,0.26519842]
[1750154615947,0.99201527,656.66,655.7,0.26519842]
[1750154616145,0.99201527,656.65,655.7,0.26519842]
[1750154616346,0.99201527,656.64,655.7,0.26519842]
[1750154616547,0.99201527,656.63,655.7,0.26519842]
[1750154616747,0.99201527,656.62,655.7,0.26519842]
[1750154616945,0.99201527,656.61,655.7,0.26519842]
[1750154617249,0.99201527,656.6,655.7,0.26519842]
[1750154617447,0.99201527,656.59,655.7,0.26519842]
[1750154617648,0.99201527,656.58,655.7,0.26519842]
[1750154617844,0.99201527,656.57,655.7,0.26519842]
[1750154618044,0.99201527,656.56,655.7,0.26519842]
[1750154618244,0.99201527,656.55,655.7,0.26519842]
[1750154618452,0.99626635,656.71,655.7,0.26519842]
[1750154618649,0.99076262,656.7,655.7,0.26519842]
[1750154618849,0.99076262,656.69,655.7,0.26519842]
[1750154619050,0.99076262,656.68,655.7,0.26519842]
[1750154619244,0.99076262,656.67,655.7,0.26519842]
[1750154619546,1.13717667,656.89,655.7,0.26519842]
[1750154619547,0.99076262,656.66,655.7,0.26519842]
[1750154619749,0.99076262,656.65,655.7,0.26519842]
[1750154620045,0.99076262,656.64,655.7,0.26519842]
[1750154620250,0.99076262,656.63,655.7,0.26519842]
[1750154620450,0.99076262,656.62,655.7,0.26519842]
[1750154620651,0.99076262,656.61,655.7,0.26519842]
[1750154620850,0.99076262,656.6,655.7,0.26519842]
[1750154621049,0.99076262,656.59,655.7,0.26519842]
[1750154621251,0.99076262,656.58,655.7,0.26519842]
[1750154621446,0.99076262,656.57,655.7,0.26519842]
[1750154621647,0.99076262,656.56,655.7,0.26519842]
[1750154621949,0.99076262,656.55,655.7,0.26519842]
[1750154622249,0.99076262,656.54,655.7,0.26519842]
[1750154622448,0.99076262,656.53,655.7,0.26519842]
[1750154622752,0.99208862,656.77,655.7,0.26519842]
[1750154622952,0.9908353,656.76,655.7,0.26519842]
[1750154623149,0.9908353,656.75,655.7,0.26519842]
[1750154623351,0.9908353,656.74,655.7,0.26519842]
[1750154623548,0.9908353,656.73,655.7,0.26519842]
[1750154623748,0.9908353,656.72,655.7,0.26519842]
[1750154624048,0.9908353,656.71,655.7,0.26519842]
[1750154624250,0.9908353,656.7,655.7,0.26519842]
[1750154624449,0.9908353,656.69,655.7,0.26519842]
[1750154624650,0.9908353,656.68,655.7,0.26519842]
[1750154624848,0.9908353,656.67,655.7,0.26519842]
[1750154625049,0.9908353,656.66,655.7,0.26519842]
[1750154625249,0.9908353,656.65,655.7,0.26519842]
[1750154625450,0.9908353,656.64,655.7,0.26519842]
[1750154625649,0.9908353,656.63,655.7,0.26519842]
[1750154625853,0.9908353,656.62,655.7,0.26519842]
[1750154626049,0.9908353,656.61,655.7,0.26519842]
[1750154626348,0.9908353,656.6,655.7,0.26519842]
[1750154626553,0.9908353,656.59,655.7,0.26519842]
[1750154626753,0.9908353,656.58,655.7,0.26519842]
[1750154627053,0.9908353,656.57,655.7,0.26519842]
[1750154627253,0.9908353,656.56,655.7,0.26519842]
[1750154627448,0.9908353,656.55,655.7,0.26519842]
[1750154627652,0.9908353,656.54,655.7,0.26519842]
[1750154627853,0.9908353,656.53,655.7,0.26519842]
[1750154628154,0.9908353,656.52,655.7,0.26519842]
[1750154628355,0.9908353,656.51,655.7,0.26519842]
[1750154628549,0.9908353,656.5,655.7,0.26519842]
[1750154628754,0.9908353,656.49,655.7,0.26519842]
[1750154629053,0.9908353,656.48,655.7,0.26519842]
[1750154629253,0.9908353,656.47,655.7,0.26519842]
[1750154629450,0.9908353,656.46,655.7,0.26519842]
[1750154629650,0.9908353,656.45,655.7,0.26519842]
[1750154629854,0.9908353,656.44,655.7,0.26519842]
[1750154630056,2.84021615,656.73,655.7,0.26519842]
[1750154630254,3.83161546,656.72,655.7,0.26519842]
[1750154630455,3.83161546,656.71,655.7,0.26519842]
[1750154630655,3.83161546,656.7,655.7,0.26519842]
[1750154630955,3.27367671,656.69,655.7,0.26519842]
[1750154631151,3.27367671,656.68,655.7,0.26519842]
[1750154631354,1.98396556,656.67,655.7,0.26519842]
[1750154631550,1.98461563,656.66,655.7,0.26519842]
[1750154631754,1.98461563,656.65,655.7,0.26519842]
[1750154631955,1.98461563,656.64,655.7,0.26519842]
[1750154632155,1.98461563,656.63,655.7,0.26519842]
[1750154632351,0.99139931,656.62,655.7,0.26519842]
[1750154632552,0.99139931,656.61,655.7,0.26519842]
[1750154632755,0.99139931,656.6,655.7,0.26519842]
[1750154633053,2.84065927,656.74,655.7,0.26519842]
[1750154633054,0.99139931,656.59,655.7,0.26519842]
[1750154633255,0.99139931,656.58,655.7,0.26519842]
[1750154633452,0.99139931,656.57,655.7,0.26519842]
[1750154633653,0.99139931,656.56,655.7,0.26519842]
[1750154633857,0.99139931,656.55,655.7,0.26519842]
[1750154634053,0.99139931,656.54,655.7,0.26519842]
[1750154634256,0.99139931,656.53,655.7,0.26519842]
[1750154634557,0.99139931,656.52,655.7,0.26519842]
[1750154634853,0.99139931,656.51,655.7,0.26519842]
[1750154635157,0.99139931,656.5,655.7,0.26519842]
[1750154635353,0.99139931,656.49,655.7,0.26519842]
[1750154635556,0.99139931,656.48,655.7,0.26519842]
[1750154635758,0.99139931,656.47,655.7,0.26519842]
[1750154635958,0.99139931,656.46,655.7,0.26519842]
[1750154636254,0.99139931,656.45,655.7,0.26519842]
[1750154636453,0.99139931,656.44,655.7,0.26519842]
[1750154636653,0.99139931,656.43,655.7,0.26519842]
[1750154636854,0.99139931,656.42,655.7,0.26519842]
[1750154637058,0.99139931,656.41,655.7,0.26519842]
[1750154637254,0.99139931,656.4,655.7,0.26519842]
[1750154637460,0.99139931,656.39,655.7,0.26519842]
[1750154637758,0.99139931,656.38,655.7,0.26519842]
[1750154637959,0.99139931,656.37,655.7,0.26519842]
[1750154638158,0.9935244,656.68,655.7,0.26519842]
[1750154638358,0.99239018,656.67,655.7,0.26519842]
[1750154638558,0.99239018,656.66,655.7,0.26519842]
[1750154638854,0.99239018,656.65,655.7,0.26519842]
[1750154639158,0.99239018,656.64,655.7,0.26519842]
[1750154639458,0.99239018,656.63,655.7,0.26519842]
[1750154639653,0.99239018,656.62,655.7,0.26519842]
[1750154639858,0.99239018,656.61,655.7,0.26519842]
[1750154640156,0.99239018,656.6,655.7,0.26519842]
[1750154640360,0.99239018,656.59,655.7,0.26519842]
[1750154640560,0.99239018,656.58,655.7,0.26519842]
[1750154640761,0.99239018,656.57,655.45,0.30513387]
[1750154641063,0.99239018,656.56,655.6,0.26522975]
[1750154641263,0.99239018,656.55,655.6,0.26522975]
[1750154641463,0.99239018,656.54,655.6,0.26522975]
[1750154641663,0.99239018,656.53,655.6,0.26522975]
[1750154641863,0.99239018,656.52,655.45,0.30513387]
[1750154642161,0.99239018,656.51,655.63,0.26521661]
[1750154642363,0.99239018,656.5,655.63,0.26521661]
[1750154642659,1.13717667,656.69,655.63,0.26521661]
[1750154642660,0.99239018,656.49,655.63,0.26521661]
[1750154642864,0.99239018,656.48,655.63,0.26521661]
[1750154643164,0.99239018,656.47,655.63,0.26521661]
[1750154643361,0.99239018,656.46,655.63,0.26521661]
[1750154643559,0.99239018,656.45,655.63,0.26521661]
[1750154643763,0.99239018,656.44,655.63,0.26521661]
[1750154643960,0.99239018,656.43,655.63,0.26521661]
[1750154644164,0.99239018,656.42,655.63,0.26521661]
[1750154644362,0.99239018,656.41,655.63,0.26521661]
[1750154644562,0.99239018,656.4,655.63,0.26521661]
[1750154644876,0.99239018,656.39,655.63,0.26521661]
[1750154645067,0.99239018,656.38,655.63,0.26521661]
[1750154645266,0.99266115,656.37,655.63,0.26521661]
[1750154645564,0.99266115,656.36,655.63,0.26521661]
[1750154645865,0.99266115,656.35,655.63,0.26521661]
[1750154646165,1.12950901,656.7,655.63,0.26521661]
[1750154646166,0.99266115,656.34,655.63,0.26521661]
[1750154646368,0.99266115,656.33,655.63,0.26521661]
[1750154646567,0.99500995,656.65,655.63,0.26521661]
[1750154646766,0.9930162,656.64,655.63,0.26521661]
[1750154646966,0.9930162,656.63,655.63,0.26521661]
[1750154647166,0.9930162,656.62,655.63,0.26521661]
[1750154647466,0.9930162,656.61,655.63,0.26521661]
[1750154647670,0.9930162,656.6,655.63,0.26521661]
[1750154647871,0.9930162,656.59,655.63,0.26521661]
[1750154648167,0.9930162,656.58,655.63,0.26521661]
[1750154648465,0.9930162,656.57,655.63,0.26521661]
[1750154648671,0.9930162,656.56,655.63,0.26521661]
[1750154648873,0.9930162,656.55,655.63,0.26521661]
[1750154649067,0.9930162,656.54,655.63,0.26521661]
[1750154649266,0.9930162,656.53,655.63,0.26521661]
[1750154649465,0.9930162,656.52,655.63,0.26521661]
[1750154649668,0.9930162,656.51,655.63,0.26521661]
[1750154649870,0.9930162,656.5,655.63,0.26521661]
[1750154650071,0.9930162,656.49,655.63,0.26521661]
[1750154650270,0.9930162,656.48,655.63,0.26521661]
[1750154650473,0.9930162,656.47,655.63,0.26521661]
[1750154650671,0.9930162,656.46,655.63,0.26521661]
[1750154650874,0.9930162,656.45,655.63,0.26521661]
[1750154651078,0.9930162,656.44,655.63,0.26521661]
[1750154651374,0.9930162,656.43,655.63,0.26521661]
[1750154651574,0.9930162,656.42,655.63,0.26521661]
[1750154651775,0.9930162,656.41,655.63,0.26521661]
[1750154651971,0.9930162,656.4,655.63,0.26521661]
[1750154652170,0.9930162,656.39,655.63,0.26521661]
[1750154652374,0.9930162,656.38,655.63,0.26521661]
[1750154652576,0.9930162,656.37,655.63,0.26521661]
[1750154652773,0.9930162,656.36,655.63,0.26521661]
[1750154652972,0.9930162,656.35,655.63,0.26521661]
[1750154653276,0.9930162,656.34,655.63,0.26521661]
[1750154653572,0.9930162,656.33,655.63,0.26521661]
[1750154653877,0.9930162,656.32,655.63,0.26521661]
[1750154654077,2.271065,657.06,655.63,0.26521661]
[1750154654078,0.9930162,656.31,655.63,0.26521661]
[1750154654275,0.9930162,656.3,655.63,0.26521661]
[1750154654473,1.12950901,656.65,655.63,0.26521661]
[1750154654474,0.9930162,656.29,655.63,0.26521661]
[1750154654774,0.9930162,656.28,655.63,0.26521661]
[1750154655076,0.9930162,656.27,655.63,0.26521661]
[1750154655278,0.9926395,656.53,655.63,0.26521661]
[1750154655475,0.99299872,656.52,655.63,0.26521661]
[1750154655676,0.99299872,656.51,655.63,0.26521661]
[1750154655874,2.28500981,656.61,655.63,0.26521661]
[1750154656077,2.28500981,656.6,655.63,0.26521661]
[1750154656276,0.9926395,656.59,655.63,0.26521661]
[1750154656475,2.84420216,656.83,655.63,0.26521661]
[1750154656678,3.14869958,656.82,655.63,0.26521661]
[1750154656874,3.14870422,656.81,655.63,0.26521661]
[1750154657076,3.14850166,656.8,655.63,0.26521661]
[1750154657278,3.1485063,656.79,655.63,0.26521661]
[1750154657474,3.14851094,656.78,655.63,0.26521661]
[1750154657782,3.14851557,656.77,655.63,0.26521661]
[1750154657976,3.14852021,656.76,655.63,0.26521661]
[1750154658176,2.84399497,656.75,655.63,0.26521661]
[1750154658375,2.84399497,656.74,655.63,0.26521661]
[1750154658574,1.12997489,656.57,655.63,0.26521661]
[1750154659579,2.84389158,656.68,655.63,0.26521661]
[1750154659778,2.84389158,656.67,655.63,0.26521661]
[1750154659982,2.84297763,656.66,655.63,0.26521661]
[1750154660182,2.84297763,656.65,655.45,0.30513387]
[1750154660479,2.8429492,656.64,655.55,0.26523177]
[1750154660783,2.8429492,656.63,655.55,0.26523177]
[1750154660982,2.8429492,656.62,655.55,0.26523177]
[1750154661282,2.8429492,656.61,655.55,0.26523177]
[1750154661479,1.55221331,656.6,655.55,0.26523177]
[1750154661685,0.99323234,656.59,655.55,0.26523177]
[1750154661981,0.99323234,656.58,655.55,0.26523177]
[1750154662185,0.99323234,656.59,655.55,0.26523177]
[1750154662482,0.99323234,656.58,655.55,0.26523177]
[1750154662685,0.99323234,656.57,655.55,0.26523177]
[1750154662883,0.99323234,656.59,655.55,0.26523177]
[1750154663082,0.99323234,656.58,655.55,0.26523177]
[1750154663384,0.99323234,656.57,655.55,0.26523177]
[1750154663585,2.84299577,656.58,655.55,0.26523177]
[1750154663785,2.84299577,656.57,655.55,0.26523177]
[1750154663983,2.84299577,656.56,655.55,0.26523177]
[1750154664186,2.84299577,656.55,655.55,0.26523177]
[1750154664482,2.84322066,656.54,655.55,0.26523177]
[1750154664783,2.84322066,656.53,655.55,0.26523177]
[1750154664985,2.28419312,656.52,655.55,0.26523177]
[1750154665186,2.8430732,656.51,655.55,0.26523177]
[1750154665384,2.28419312,656.5,655.55,0.26523177]
[1750154665586,2.28419312,656.49,655.55,0.26523177]
[1750154665787,0.99354519,656.48,655.55,0.26523177]
[1750154665987,2.84407214,656.75,655.55,0.26523177]
[1750154666284,3.14860665,656.74,655.55,0.26523177]
[1750154666587,3.14861129,656.73,655.55,0.26523177]
[1750154666783,3.14861593,656.72,655.55,0.26523177]
[1750154666984,3.14862057,656.71,655.55,0.26523177]
[1750154667288,3.1486252,656.7,655.55,0.26523177]
[1750154667486,3.14862984,656.69,655.55,0.26523177]
[1750154667788,3.14863448,656.68,655.55,0.26523177]
[1750154667989,3.14863912,656.67,655.55,0.26523177]
[1750154668288,2.84407214,656.66,655.55,0.26523177]
[1750154668484,3.14864839,656.65,655.55,0.26523177]
[1750154668686,3.14811841,656.64,655.55,0.26523177]
[1750154668884,3.14812305,656.63,655.55,0.26523177]
[1750154669084,2.84353752,656.62,655.55,0.26523177]
[1750154669288,3.1478415,656.61,655.45,0.30513387]
[1750154669487,3.14784614,656.6,655.45,0.30513387]
[1750154669689,3.14785078,656.59,655.45,0.30513387]
[1750154669886,3.14785542,656.58,655.45,0.30513387]
[1750154670090,2.84324669,656.57,655.45,0.30513387]
[1750154670290,1.84985053,656.56,655.45,0.30513387]
[1750154670587,0.99339616,656.55,655.45,0.30513387]
[1750154670790,3.14787397,656.54,655.45,0.30513387]
[1750154670989,3.14787861,656.53,655.45,0.30513387]
[1750154671190,2.84324669,656.52,655.45,0.30513387]
[1750154671389,2.84324669,656.51,655.45,0.30513387]
[1750154671691,2.84326392,656.5,655.45,0.30513387]
[1750154671893,2.84326392,656.49,655.45,0.30513387]
[1750154672092,2.84326392,656.48,655.45,0.30513387]
[1750154672292,2.84326392,656.47,655.45,0.30513387]
[1750154672490,2.84325647,656.46,655.45,0.30513387]
[1750154672795,2.84325647,656.45,655.45,0.30513387]
[1750154672990,2.84325647,656.44,655.45,0.30513387]
[1750154673190,2.84325647,656.43,655.45,0.30513387]
[1750154673393,2.84325647,656.42,655.45,0.30513387]
[1750154673693,2.84325647,656.41,655.45,0.30513387]
[1750154673894,2.84325647,656.4,655.45,0.30513387]
[1750154674094,2.84325647,656.39,655.45,0.30513387]
[1750154674292,2.84325647,656.38,655.45,0.30513387]
[1750154674494,2.84325647,656.37,655.45,0.30513387]
[1750154674698,1.12812742,656.34,655.45,0.30513387]
[1750154674989,1.12812742,656.32,655.45,0.30513387]
[1750154675197,1.12812742,656.3,655.33,0.26530254]
[1750154675391,2.11935499,656.29,654.82,2.27127738]
[1750154675594,3.83448404,656.28,654.84,0.30541811]
[1750154675891,1.12812742,656.24,655.26,0.26539055]
[1750154676090,0.99122757,656.23,654.84,0.30541811]
[1750154676293,0.99122757,656.22,655.25,0.26539561]
[1750154676492,0.99122757,656.21,654.84,0.30541811]
[1750154676690,0.99122757,656.2,654.84,0.30541811]
[1750154676897,0.99122757,656.19,655.19,0.2654108]
[1750154677093,0.99122757,656.18,655.19,0.2654108]
[1750154677293,2.11935499,656.17,655.19,0.2654108]
[1750154677495,3.8305398,656.16,655.19,0.2654108]
[1750154677693,3.8305398,656.15,655.19,0.2654108]
[1750154677892,3.8305398,656.14,655.19,0.2654108]
[1750154678093,3.8305398,656.13,655.19,0.2654108]
[1750154678297,3.8305398,656.12,655.19,0.2654108]
[1750154678498,3.27277671,656.11,655.19,0.2654108]
[1750154678697,1.98482641,656.1,655.19,0.2654108]
[1750154678996,3.27052362,656.09,655.19,0.2654108]
[1750154679197,2.27692478,656.08,655.19,0.2654108]
[1750154679401,0.99122757,656.07,655.19,0.2654108]
[1750154679701,0.99122757,656.06,655.19,0.2654108]
[1750154679901,0.99122757,656.05,655.19,0.2654108]
[1750154680097,0.99122757,656.04,655.19,0.2654108]
[1750154680302,0.99122757,656.03,655.19,0.2654108]
[1750154680501,0.99122757,656.02,655.19,0.2654108]
[1750154680704,0.99122757,656.01,655.19,0.2654108]
[1750154681012,0.99122757,656.0,654.84,0.30541811]
[1750154681204,0.99122757,655.99,655.07,0.26545635]
[1750154681503,0.99122757,655.98,655.07,0.26545635]
[1750154681703,0.99122757,655.97,655.07,0.26545635]
[1750154681904,0.99122757,655.96,655.07,0.26545635]
[1750154682105,0.99122757,655.95,655.07,0.26545635]
[1750154682305,0.99122757,655.94,655.07,0.26545635]
[1750154682505,0.99122757,655.93,655.07,0.26545635]
[1750154682705,0.99122757,655.92,655.07,0.26545635]
[1750154682908,0.99122757,655.91,654.84,0.30541811]
[1750154683206,0.99122757,655.9,654.98,0.26548369]
[1750154683407,0.99122757,655.89,654.98,0.26548369]
[1750154683604,0.99122757,655.88,654.98,0.26548369]
[1750154683802,0.99122757,655.87,654.98,0.26548369]
[1750154684002,0.99122757,655.86,654.98,0.26548369]
[1750154684202,0.99122757,655.85,654.98,0.26548369]
[1750154684406,0.99122757,655.84,654.98,0.26548369]
[1750154684701,0.99122757,655.83,654.98,0.26548369]
[1750154684905,0.99122757,655.82,654.98,0.26548369]
[1750154685202,0.99122757,655.81,654.98,0.26548369]
[1750154685405,0.99122757,655.8,654.98,0.26548369]
[1750154685703,0.99122757,655.79,654.98,0.26548369]
[1750154685901,0.99122757,655.78,654.98,0.26548369]
[1750154686106,0.99122757,655.77,654.98,0.26548369]
[1750154686306,0.99122757,655.76,654.98,0.26548369]
[1750154686504,0.99122757,655.75,654.98,0.26548369]
[1750154686706,0.99122757,655.74,654.98,0.26548369]
[1750154686904,0.99122757,655.73,654.98,0.26548369]
[1750154687104,0.99122757,655.72,654.98,0.26548369]
[1750154687307,0.99122757,655.71,654.98,0.26548369]
[1750154687609,0.99122757,655.7,654.98,0.26548369]
[1750154687804,0.99122757,655.69,654.98,0.26548369]
[1750154688105,0.98152452,656.07,654.98,0.26548369]
[1750154688405,1.96667235,656.06,654.98,0.26548369]
[1750154688704,3.79883681,656.05,654.98,0.26548369]
[1750154688910,3.79883681,656.04,654.98,0.26548369]
[1750154689208,3.79883681,656.03,654.98,0.26548369]
[1750154689509,3.79868722,656.02,654.98,0.26548369]
[1750154689711,3.79865531,656.01,654.98,0.26548369]
[1750154690005,1.12812742,655.98,654.98,0.26548369]
[1750154690206,1.96637258,655.97,654.98,0.26548369]
[1750154690404,3.79769896,655.96,654.98,0.26548369]
[1750154690705,1.12812742,655.92,654.98,0.26548369]
[1750154690909,1.12812742,655.9,654.84,0.30541811]
[1750154691103,1.96637258,655.89,654.9,0.26549989]
[1750154691306,3.79759147,655.88,654.9,0.26549989]
[1750154691509,3.79759147,655.87,654.9,0.26549989]
[1750154691709,3.79759147,655.86,654.9,0.26549989]
[1750154692005,0.98514783,655.85,654.9,0.26549989]
[1750154692206,0.98514783,655.84,654.9,0.26549989]
[1750154692405,0.98514783,655.83,654.9,0.26549989]
[1750154692705,0.98514783,655.82,654.9,0.26549989]
[1750154692904,0.98514783,655.81,654.9,0.26549989]
[1750154693105,0.98514783,655.8,654.9,0.26549989]
[1750154693304,0.98514783,655.79,654.9,0.26549989]
[1750154693507,0.98514783,655.78,654.9,0.26549989]
[1750154693710,0.98514783,655.77,654.9,0.26549989]
[1750154693911,0.98514783,655.76,654.9,0.26549989]